Workbook

Sheet Tendenze annuali
A1: Titolo tendenze spese
A2: Mese | B2: Spesa 1 | C2: Spesa 2 | D2: Spesa 3 | E2: Spesa 4 | F2: Spesa 5
A3: Gen | B3: =SUBTOTAL(109,Spesa11[Importo]) -> 100.00 | C3: =SUBTOTAL(109,Spesa21[Importo]) -> 200.00 | D3: =SUBTOTAL(109,Spesa31[Importo]) -> 300.00 | E3: =SUBTOTAL(109,Spesa41[Importo]) -> 400.00 | F3: =SUBTOTAL(109,Spesa51[Importo]) -> 500.00
A4: Feb | B4: =SUBTOTAL(109,Spesa12[Importo]) -> 200.00 | C4: =SUBTOTAL(109,Spesa22[Importo]) -> 200.00 | D4: =SUBTOTAL(109,Spesa32[Importo]) -> 300.00 | E4: =SUBTOTAL(109,Spesa42[Importo]) -> 400.00 | F4: =SUBTOTAL(109,Spesa52[Importo]) -> 500.00
A5: Mar | B5: =SUBTOTAL(109,Spesa13[Importo]) -> 300.00 | C5: =SUBTOTAL(109,Spesa23[Importo]) -> 200.00 | D5: =SUBTOTAL(109,Spesa33[Importo]) -> 300.00 | E5: =SUBTOTAL(109,Spesa43[Importo]) -> 400.00 | F5: =SUBTOTAL(109,Spesa53[Importo]) -> 500.00
A6: Apr | B6: =SUBTOTAL(109,Spesa14[Importo]) -> 400.00 | C6: =SUBTOTAL(109,Spesa24[Importo]) -> 200.00 | D6: =SUBTOTAL(109,Spesa34[Importo]) -> 300.00 | E6: =SUBTOTAL(109,Spesa44[Importo]) -> 400.00 | F6: =SUBTOTAL(109,Spesa54[Importo]) -> 500.00
A7: Mag | B7: =SUBTOTAL(109,Spesa15[Importo]) -> 500.00 | C7: =SUBTOTAL(109,Spesa25[Importo]) -> 200.00 | D7: =SUBTOTAL(109,Spesa35[Importo]) -> 300.00 | E7: =SUBTOTAL(109,Spesa45[Importo]) -> 400.00 | F7: =SUBTOTAL(109,Spesa55[Importo]) -> 500.00
A8: Giu | B8: =SUBTOTAL(109,Spesa16[Importo]) -> 600.00 | C8: =SUBTOTAL(109,Spesa26[Importo]) -> 200.00 | D8: =SUBTOTAL(109,Spesa36[Importo]) -> 300.00 | E8: =SUBTOTAL(109,Spesa46[Importo]) -> 400.00 | F8: =SUBTOTAL(109,Spesa56[Importo]) -> 500.00
A9: Lug | B9: =SUBTOTAL(109,Spesa17[Importo]) -> 700.00 | C9: =SUBTOTAL(109,Spesa27[Importo]) -> 200.00 | D9: =SUBTOTAL(109,Spesa37[Importo]) -> 300.00 | E9: =SUBTOTAL(109,Spesa47[Importo]) -> 400.00 | F9: =SUBTOTAL(109,Spesa57[Importo]) -> 500.00
A10: Ago | B10: =SUBTOTAL(109,Spesa18[Importo]) -> 800.00 | C10: =SUBTOTAL(109,Spesa28[Importo]) -> 200.00 | D10: =SUBTOTAL(109,Spesa38[Importo]) -> 300.00 | E10: =SUBTOTAL(109,Spesa48[Importo]) -> 400.00 | F10: =SUBTOTAL(109,Spesa58[Importo]) -> 500.00
A11: Set | B11: =SUBTOTAL(109,Spesa19[Importo]) -> 900.00 | C11: =SUBTOTAL(109,Spesa29[Importo]) -> 200.00 | D11: =SUBTOTAL(109,Spesa39[Importo]) -> 300.00 | E11: =SUBTOTAL(109,Spesa49[Importo]) -> 400.00 | F11: =SUBTOTAL(109,Spesa59[Importo]) -> 500.00
A12: Ott | B12: =SUBTOTAL(109,Spesa110[Importo]) -> 1,000.00 | C12: =SUBTOTAL(109,Spesa210[Importo]) -> 200.00 | D12: =SUBTOTAL(109,Spesa310[Importo]) -> 300.00 | E12: =SUBTOTAL(109,Spesa410[Importo]) -> 400.00 | F12: =SUBTOTAL(109,Spesa510[Importo]) -> 500.00
A13: Nov | B13: =SUBTOTAL(109,Spesa111[Importo]) -> 1,100.00 | C13: =SUBTOTAL(109,Spesa211[Importo]) -> 200.00 | D13: =SUBTOTAL(109,Spesa311[Importo]) -> 300.00 | E13: =SUBTOTAL(109,Spesa411[Importo]) -> 400.00 | F13: =SUBTOTAL(109,Spesa511[Importo]) -> 500.00
A14: Dic | B14: =SUBTOTAL(109,Spesa112[Importo]) -> 1,200.00 | C14: =SUBTOTAL(109,Spesa212[Importo]) -> 200.00 | D14: =SUBTOTAL(109,Spesa312[Importo]) -> 300.00 | E14: =SUBTOTAL(109,Spesa412[Importo]) -> 400.00 | F14: =SUBTOTAL(109,Spesa512[Importo]) -> 500.00
A15: Totale | B15: =SUM(B3:B14) -> 7,800.00 | C15: =SUM(C3:C14) -> 2,400.00 | D15: =SUM(D3:D14) -> 3,600.00 | E15: =SUM(E3:E14) -> 4,800.00 | F15: =SUM(F3:F14) -> 6,000.00
A16: Tendenze

Sheet Gen
A1: Spese gennaio
C3: TOTALE | D3: =SUM(D10,D17,D24,D30,D36) -> $1,500.00
A4: Spesa 1
A5: Data | B5: N. ordine | C5: Fornitore/Descrizione | D5: Importo
A6: 2010-01-08 | C6: Esempio 1 | D6: 100.00
A10: Subtotale | D10: =SUBTOTAL(109,Spesa11[Importo]) -> 100.00
A11: x
A12: Spesa 2
A13: Data | B13: N. ordine | C13: Descrizione | D13: Importo
A14: 2010-01-04 | C14: Esempio 2 | D14: 200.00
A17: Subtotale | D17: =SUBTOTAL(109,Spesa21[Importo]) -> 200.00
A18: x
A19: Spesa 3
A20: Data | B20: N. ordine | C20: Fornitore/Descrizione | D20: Importo
A21: 2010-01-02 | C21: Esempio 3 | D21: 300.00
A24: Subtotale | D24: =SUBTOTAL(109,Spesa31[Importo]) -> 300.00
A25: x
A26: Spesa 4
A27: Data | B27: N. ordine | C27: Fornitore/Descrizione | D27: Importo
A28: 2010-01-10 | C28: Esempio 4 | D28: 400.00
A30: Subtotale | D30: =SUBTOTAL(109,Spesa41[Importo]) -> 400.00
A31: s
A32: Spesa 5
A33: Data | B33: N. ordine | C33: Fornitore/Descrizione | D33: Importo
A34: 2010-01-25 | C34: Esempio 5 | D34: 500.00
A36: Subtotale | D36: =SUBTOTAL(109,Spesa51[Importo]) -> 500.00

Sheet Feb
A1: Spese febbraio
C3: TOTALE | D3: =SUM(D10,D17,D24,D30,D36) -> 1,600.00
A4: Spesa 1
A5: Data | B5: N. ordine | C5: Fornitore/Descrizione | D5: Importo
A6: 2010-02-08 | C6: Esempio 1 | D6: 200.00
A10: Subtotale | D10: =SUBTOTAL(109,Spesa12[Importo]) -> 200.00
A11: x
A12: Spesa 2
A13: Data | B13: N. ordine | C13: Descrizione | D13: Importo
A14: 2010-02-04 | C14: Esempio 2 | D14: 200.00
A17: Subtotale | D17: =SUBTOTAL(109,Spesa22[Importo]) -> 200.00
A18: x
A19: Spesa 3
A20: Data | B20: N. ordine | C20: Fornitore/Descrizione | D20: Importo
A21: 2010-02-02 | C21: Esempio 3 | D21: 300.00
A24: Subtotale | D24: =SUBTOTAL(109,Spesa32[Importo]) -> 300.00
A25: x
A26: Spesa 4
A27: Data | B27: N. ordine | C27: Fornitore/Descrizione | D27: Importo
A28: 2010-02-10 | C28: Esempio 4 | D28: 400.00
A30: Subtotale | D30: =SUBTOTAL(109,Spesa42[Importo]) -> 400.00
A31: s
A32: Spesa 5
A33: Data | B33: N. ordine | C33: Fornitore/Descrizione | D33: Importo
A34: 2010-02-25 | C34: Esempio 5 | D34: 500.00
A36: Subtotale | D36: =SUBTOTAL(109,Spesa52[Importo]) -> 500.00

Sheet Mar
A1: Spese marzo
C3: TOTALE | D3: =SUM(D10,D17,D24,D30,D36) -> 1,700.00
A4: Spesa 1
A5: Data | B5: N. ordine | C5: Fornitore/Descrizione | D5: Importo
A6: 2010-03-08 | C6: Esempio 1 | D6: 300.00
A10: Subtotale | D10: =SUBTOTAL(109,Spesa13[Importo]) -> 300.00
A11: x
A12: Spesa 2
A13: Data | B13: N. ordine | C13: Descrizione | D13: Importo
A14: 2010-03-04 | C14: Esempio 2 | D14: 200.00
A17: Subtotale | D17: =SUBTOTAL(109,Spesa23[Importo]) -> 200.00
A18: x
A19: Spesa 3
A20: Data | B20: N. ordine | C20: Fornitore/Descrizione | D20: Importo
A21: 2010-03-02 | C21: Esempio 3 | D21: 300.00
A24: Subtotale | D24: =SUBTOTAL(109,Spesa33[Importo]) -> 300.00
A25: x
A26: Spesa 4
A27: Data | B27: N. ordine | C27: Fornitore/Descrizione | D27: Importo
A28: 2010-03-10 | C28: Esempio 4 | D28: 400.00
A30: Subtotale | D30: =SUBTOTAL(109,Spesa43[Importo]) -> 400.00
A31: s
A32: Spesa 5
A33: Data | B33: N. ordine | C33: Fornitore/Descrizione | D33: Importo
A34: 2010-03-25 | C34: Esempio 5 | D34: 500.00
A36: Subtotale | D36: =SUBTOTAL(109,Spesa53[Importo]) -> 500.00

Sheet Apr
A1: Spese aprile
C3: TOTALE | D3: =SUM(D10,D17,D24,D30,D36) -> 1,800.00
A4: Spesa 1
A5: Data | B5: N. ordine | C5: Fornitore/Descrizione | D5: Importo
A6: 2010-04-08 | C6: Esempio 1 | D6: 400.00
A10: Subtotale | D10: =SUBTOTAL(109,Spesa14[Importo]) -> 400.00
A11: x
A12: Spesa 2
A13: Data | B13: N. ordine | C13: Descrizione | D13: Importo
A14: 2010-04-04 | C14: Esempio 2 | D14: 200.00
A17: Subtotale | D17: =SUBTOTAL(109,Spesa24[Importo]) -> 200.00
A18: x
A19: Spesa 3
A20: Data | B20: N. ordine | C20: Fornitore/Descrizione | D20: Importo
A21: 2010-04-02 | C21: Esempio 3 | D21: 300.00
A24: Subtotale | D24: =SUBTOTAL(109,Spesa34[Importo]) -> 300.00
A25: x
A26: Spesa 4
A27: Data | B27: N. ordine | C27: Fornitore/Descrizione | D27: Importo
A28: 2010-04-10 | C28: Esempio 4 | D28: 400.00
A30: Subtotale | D30: =SUBTOTAL(109,Spesa44[Importo]) -> 400.00
A31: s
A32: Spesa 5
A33: Data | B33: N. ordine | C33: Fornitore/Descrizione | D33: Importo
A34: 2010-04-25 | C34: Esempio 5 | D34: 500.00
A36: Subtotale | D36: =SUBTOTAL(109,Spesa54[Importo]) -> 500.00

Sheet Mag
A1: Spese maggio
C3: TOTALE | D3: =SUM(D10,D17,D24,D30,D36) -> 1,900.00
A4: Spesa 1
A5: Data | B5: N. ordine | C5: Fornitore/Descrizione | D5: Importo
A6: 2010-05-08 | C6: Esempio 1 | D6: 500.00
A10: Subtotale | D10: =SUBTOTAL(109,Spesa15[Importo]) -> 500.00
A11: x
A12: Spesa 2
A13: Data | B13: N. ordine | C13: Descrizione | D13: Importo
A14: 2010-05-04 | C14: Esempio 2 | D14: 200.00
A17: Subtotale | D17: =SUBTOTAL(109,Spesa25[Importo]) -> 200.00
A18: x
A19: Spesa 3
A20: Data | B20: N. ordine | C20: Fornitore/Descrizione | D20: Importo
A21: 2010-05-02 | C21: Esempio 3 | D21: 300.00
A24: Subtotale | D24: =SUBTOTAL(109,Spesa35[Importo]) -> 300.00
A25: x
A26: Spesa 4
A27: Data | B27: N. ordine | C27: Fornitore/Descrizione | D27: Importo
A28: 2010-05-10 | C28: Esempio 4 | D28: 400.00
A30: Subtotale | D30: =SUBTOTAL(109,Spesa45[Importo]) -> 400.00
A31: s
A32: Spesa 5
A33: Data | B33: N. ordine | C33: Fornitore/Descrizione | D33: Importo
A34: 2010-05-25 | C34: Esempio 5 | D34: 500.00
A36: Subtotale | D36: =SUBTOTAL(109,Spesa55[Importo]) -> 500.00

Sheet Giu
A1: Spese giugno
C3: TOTALE | D3: =SUM(D10,D17,D24,D30,D36) -> 2,000.00
A4: Spesa 1
A5: Data | B5: N. ordine | C5: Fornitore/Descrizione | D5: Importo
A6: 2010-06-08 | C6: Esempio 1 | D6: 600.00
A10: Subtotale | D10: =SUBTOTAL(109,Spesa16[Importo]) -> 600.00
A11: x
A12: Spesa 2
A13: Data | B13: N. ordine | C13: Descrizione | D13: Importo
A14: 2010-06-04 | C14: Esempio 2 | D14: 200.00
A17: Subtotale | D17: =SUBTOTAL(109,Spesa26[Importo]) -> 200.00
A18: x
A19: Spesa 3
A20: Data | B20: N. ordine | C20: Fornitore/Descrizione | D20: Importo
A21: 2010-06-02 | C21: Esempio 3 | D21: 300.00
A24: Subtotale | D24: =SUBTOTAL(109,Spesa36[Importo]) -> 300.00
A25: x
A26: Spesa 4
A27: Data | B27: N. ordine | C27: Fornitore/Descrizione | D27: Importo
A28: 2010-06-10 | C28: Esempio 4 | D28: 400.00
A30: Subtotale | D30: =SUBTOTAL(109,Spesa46[Importo]) -> 400.00
A31: s
A32: Spesa 5
A33: Data | B33: N. ordine | C33: Fornitore/Descrizione | D33: Importo
A34: 2010-06-25 | C34: Esempio 5 | D34: 500.00
A36: Subtotale | D36: =SUBTOTAL(109,Spesa56[Importo]) -> 500.00

Sheet Lug
A1: Spese luglio
C3: TOTALE | D3: =SUM(D10,D17,D24,D30,D36) -> 2,100.00
A4: Spesa 1
A5: Data | B5: N. ordine | C5: Fornitore/Descrizione | D5: Importo
A6: 2010-07-08 | C6: Esempio 1 | D6: 700.00
A10: Subtotale | D10: =SUBTOTAL(109,Spesa17[Importo]) -> 700.00
A11: x
A12: Spesa 2
A13: Data | B13: N. ordine | C13: Descrizione | D13: Importo
A14: 2010-07-04 | C14: Esempio 2 | D14: 200.00
A17: Subtotale | D17: =SUBTOTAL(109,Spesa27[Importo]) -> 200.00
A18: x
A19: Spesa 3
A20: Data | B20: N. ordine | C20: Fornitore/Descrizione | D20: Importo
A21: 2010-07-02 | C21: Esempio 3 | D21: 300.00
A24: Subtotale | D24: =SUBTOTAL(109,Spesa37[Importo]) -> 300.00
A25: x
A26: Spesa 4
A27: Data | B27: N. ordine | C27: Fornitore/Descrizione | D27: Importo
A28: 2010-07-10 | C28: Esempio 4 | D28: 400.00
A30: Subtotale | D30: =SUBTOTAL(109,Spesa47[Importo]) -> 400.00
A31: s
A32: Spesa 5
A33: Data | B33: N. ordine | C33: Fornitore/Descrizione | D33: Importo
A34: 2010-07-25 | C34: Esempio 5 | D34: 500.00
A36: Subtotale | D36: =SUBTOTAL(109,Spesa57[Importo]) -> 500.00

Sheet Ago
A1: Spese agosto
C3: TOTALE | D3: =SUM(D10,D17,D24,D30,D36) -> 2,200.00
A4: Spesa 1
A5: Data | B5: N. ordine | C5: Fornitore/Descrizione | D5: Importo
A6: 2010-08-08 | C6: Esempio 1 | D6: 800.00
A10: Subtotale | D10: =SUBTOTAL(109,Spesa18[Importo]) -> 800.00
A11: x
A12: Spesa 2
A13: Data | B13: N. ordine | C13: Descrizione | D13: Importo
A14: 2010-08-04 | C14: Esempio 2 | D14: 200.00
A17: Subtotale | D17: =SUBTOTAL(109,Spesa28[Importo]) -> 200.00
A18: x
A19: Spesa 3
A20: Data | B20: N. ordine | C20: Fornitore/Descrizione | D20: Importo
A21: 2010-08-02 | C21: Esempio 3 | D21: 300.00
A24: Subtotale | D24: =SUBTOTAL(109,Spesa38[Importo]) -> 300.00
A25: x
A26: Spesa 4
A27: Data | B27: N. ordine | C27: Fornitore/Descrizione | D27: Importo
A28: 2010-08-10 | C28: Esempio 4 | D28: 400.00
A30: Subtotale | D30: =SUBTOTAL(109,Spesa48[Importo]) -> 400.00
A31: s
A32: Spesa 5
A33: Data | B33: N. ordine | C33: Fornitore/Descrizione | D33: Importo
A34: 2010-08-25 | C34: Esempio 5 | D34: 500.00
A36: Subtotale | D36: =SUBTOTAL(109,Spesa58[Importo]) -> 500.00

Sheet Set
A1: Spese settembre
C3: TOTALE | D3: =SUM(D10,D17,D24,D30,D36) -> 2,300.00
A4: Spesa 1
A5: Data | B5: N. ordine | C5: Fornitore/Descrizione | D5: Importo
A6: 2010-09-08 | C6: Esempio 1 | D6: 900.00
A10: Subtotale | D10: =SUBTOTAL(109,Spesa19[Importo]) -> 900.00
A11: x
A12: Spesa 2
A13: Data | B13: N. ordine | C13: Descrizione | D13: Importo
A14: 2010-09-04 | C14: Esempio 2 | D14: 200.00
A17: Subtotale | D17: =SUBTOTAL(109,Spesa29[Importo]) -> 200.00
A18: x
A19: Spesa 3
A20: Data | B20: N. ordine | C20: Fornitore/Descrizione | D20: Importo
A21: 2010-09-02 | C21: Esempio 3 | D21: 300.00
A24: Subtotale | D24: =SUBTOTAL(109,Spesa39[Importo]) -> 300.00
A25: x
A26: Spesa 4
A27: Data | B27: N. ordine | C27: Fornitore/Descrizione | D27: Importo
A28: 2010-09-10 | C28: Esempio 4 | D28: 400.00
A30: Subtotale | D30: =SUBTOTAL(109,Spesa49[Importo]) -> 400.00
A31: s
A32: Spesa 5
A33: Data | B33: N. ordine | C33: Fornitore/Descrizione | D33: Importo
A34: 2010-09-25 | C34: Esempio 5 | D34: 500.00
A36: Subtotale | D36: =SUBTOTAL(109,Spesa59[Importo]) -> 500.00

Sheet Ott
A1: Spese ottobre
C3: TOTALE | D3: =SUM(D10,D17,D24,D30,D36) -> 2,400.00
A4: Spesa 1
A5: Data | B5: N. ordine | C5: Fornitore/Descrizione | D5: Importo
A6: 2010-10-08 | C6: Esempio 1 | D6: 1,000.00
A10: Subtotale | D10: =SUBTOTAL(109,Spesa110[Importo]) -> 1,000.00
A11: x
A12: Spesa 2
A13: Data | B13: N. ordine | C13: Descrizione | D13: Importo
A14: 2010-10-04 | C14: Esempio 2 | D14: 200.00
A17: Subtotale | D17: =SUBTOTAL(109,Spesa210[Importo]) -> 200.00
A18: x
A19: Spesa 3
A20: Data | B20: N. ordine | C20: Fornitore/Descrizione | D20: Importo
A21: 2010-10-02 | C21: Esempio 3 | D21: 300.00
A24: Subtotale | D24: =SUBTOTAL(109,Spesa310[Importo]) -> 300.00
A25: x
A26: Spesa 4
A27: Data | B27: N. ordine | C27: Fornitore/Descrizione | D27: Importo
A28: 2010-10-10 | C28: Esempio 4 | D28: 400.00
A30: Subtotale | D30: =SUBTOTAL(109,Spesa410[Importo]) -> 400.00
A31: s
A32: Spesa 5
A33: Data | B33: N. ordine | C33: Fornitore/Descrizione | D33: Importo
A34: 2010-10-25 | C34: Esempio 5 | D34: 500.00
A36: Subtotale | D36: =SUBTOTAL(109,Spesa510[Importo]) -> 500.00

Sheet Nov
A1: Spese novembre
C3: TOTALE | D3: =SUM(D10,D17,D24,D30,D36) -> 2,500.00
A4: Spesa 1
A5: Data | B5: N. ordine | C5: Fornitore/Descrizione | D5: Importo
A6: 2010-11-08 | C6: Esempio 1 | D6: 1,100.00
A10: Subtotale | D10: =SUBTOTAL(109,Spesa111[Importo]) -> 1,100.00
A11: x
A12: Spesa 2
A13: Data | B13: N. ordine | C13: Descrizione | D13: Importo
A14: 2010-11-04 | C14: Esempio 2 | D14: 200.00
A17: Subtotale | D17: =SUBTOTAL(109,Spesa211[Importo]) -> 200.00
A18: x
A19: Spesa 3
A20: Data | B20: N. ordine | C20: Fornitore/Descrizione | D20: Importo
A21: 2010-11-02 | C21: Esempio 3 | D21: 300.00
A24: Subtotale | D24: =SUBTOTAL(109,Spesa311[Importo]) -> 300.00
A25: x
A26: Spesa 4
A27: Data | B27: N. ordine | C27: Fornitore/Descrizione | D27: Importo
A28: 2010-11-10 | C28: Esempio 4 | D28: 400.00
A30: Subtotale | D30: =SUBTOTAL(109,Spesa411[Importo]) -> 400.00
A31: s
A32: Spesa 5
A33: Data | B33: N. ordine | C33: Fornitore/Descrizione | D33: Importo
A34: 2010-11-25 | C34: Esempio 5 | D34: 500.00
A36: Subtotale | D36: =SUBTOTAL(109,Spesa511[Importo]) -> 500.00

Sheet Dic
A1: Spese dicembre
C3: TOTALE | D3: =SUM(D10,D17,D24,D30,D36) -> 2,600.00
A4: Spesa 1
A5: Data | B5: N. ordine | C5: Fornitore/Descrizione | D5: Importo
A6: 2010-12-08 | C6: Esempio 1 | D6: 1,200.00
A10: Subtotale | D10: =SUBTOTAL(109,Spesa112[Importo]) -> 1,200.00
A11: x
A12: Spesa 2
A13: Data | B13: N. ordine | C13: Descrizione | D13: Importo
A14: 2010-12-04 | C14: Esempio 2 | D14: 200.00
A17: Subtotale | D17: =SUBTOTAL(109,Spesa212[Importo]) -> 200.00
A18: x
A19: Spesa 3
A20: Data | B20: N. ordine | C20: Fornitore/Descrizione | D20: Importo
A21: 2010-12-02 | C21: Esempio 3 | D21: 300.00
A24: Subtotale | D24: =SUBTOTAL(109,Spesa312[Importo]) -> 300.00
A25: x
A26: Spesa 4
A27: Data | B27: N. ordine | C27: Fornitore/Descrizione | D27: Importo
A28: 2010-12-10 | C28: Esempio 4 | D28: 400.00
A30: Subtotale | D30: =SUBTOTAL(109,Spesa412[Importo]) -> 400.00
A31: s
A32: Spesa 5
A33: Data | B33: N. ordine | C33: Fornitore/Descrizione | D33: Importo
A34: 2010-12-25 | C34: Esempio 5 | D34: 500.00
A36: Subtotale | D36: =SUBTOTAL(109,Spesa512[Importo]) -> 500.00
